[Event "GER-ch Youth U12 2020"]
[Site "Willingen"]
[Date "2020.10.30"]
[Round "5.15"]
[White "Winkler, Yonathan"]
[Black "Aravindan, Midhulan"]
[Result "1-0"]
[ECO "C01"]
[WhiteElo "1680"]
[BlackElo "1565"]
[Annotator "NA RC"]
[PlyCount "77"]
[EventDate "2020.10.27"]
[EventType "swiss"]
[EventRounds "7"]
[EventCountry "GER"]
[SourceTitle "playchess.com"]
[Source "ChessBase"]
[SourceQuality "1"]
[TimeControl "40/5400+30:1800+30"]

1. e4 {[%emt 0:00:00]} e6 {[%emt 0:00:00]} 2. d4 {[%emt 0:00:00]} d5 {[%emt 0:00:00]} 3. exd5 {[%emt 0:00:00]} exd5 {[%emt 0:00:00]} 4. Nf3 {[%emt 0:00:00]} Nc6 {[%emt 0:00:21]} 5. Bb5 {[%emt 0:00:24]} Bd6 {[%emt 0:01:07]} 6. c4 {[%emt 0:00:53]} Bb4+ {[%emt 0:03:01]} 7. Bd2 {[%emt 0:07:10]} Bxd2+ {[%emt 0:16:18]} 8. Qxd2 {[%emt 0:02:04]} Nge7 {[%emt 0:07:42]} 9. Nc3 {[%emt 0:01:51]} a6 {[%emt 0:06:28]} 10. Ba4 {[%emt 0:04:01]} O-O {[%emt 0:03:58]} 11. Bxc6 {[%emt 0:06:08]} bxc6 {[%emt 0:02:34]} 12. c5 {[%emt 0:00:13]} Ng6 {[%emt 0:03:34]} 13. O-O {[%emt 0:01:35]} Bg4 {[%emt 0:08:10]} 14. Qd3 {[%emt 0:07:54]} Qf6 {[%emt 0:03:05]} 15. Ne1 {[%emt 0:14:08]} Nf4 {[%emt 0:03:32]} 16. Qd2 {[%emt 0:00:05]} Rae8 {[%emt 0:03:12]} 17. f3 {[%emt 0:01:52]} Bc8 {[%emt 0:02:20]} 18. Nc2 {[%emt 0:02:31]} h5 {[%emt 0:02:05]} 19. Rae1 {[%emt 0:02:32]} h4 {[%emt 0:00:55]} 20. Ne2 {[%emt 0:03:39]} Nh5 {[%emt 0:03:22]} 21. Nb4 {[%emt 0:03:43]} Kh8 {[%emt 0:03:21]} 22. Nd3 {[%emt 0:02:02]} g5 {[%emt 0:01:31]} 23. h3 {[%emt 0:06:21]} Rg8 {[%emt 0:01:05]} 24. Ne5 {[%emt 0:01:20]} Ref8 {[%emt 0:04:20]} 25. Kh2 {[%emt 0:05:51]} Qh6 {[%emt 0:03:37]} 26. Nc1 {[%emt 0:02:10]} f5 {[%emt 0:01:42]} 27. Ncd3 {[%emt 0:02:09]} Rg7 {[%emt 0:02:58]} 28. Qe3 {[%emt 0:06:36]} Rfg8 {[%emt 0:00:50]} 29. Nb4 {[%emt 0:01:50]} Qh7 {[%emt 0:01:10]} 30. Nbxc6 {[%emt 0:01:23]} g4 {[%emt 0:02:35]} 31. fxg4 {[%emt 0:00:39]} fxg4 {[%emt 0:00:09]} 32. hxg4 {[%emt 0:00:27]} Bxg4 {[%emt 0:00:12]} 33. Nxg4 {[%emt 0:00:05]} Rxg4 {[%emt 0:00:16]} 34. Qe5+ {[%emt 0:00:05]} R4g7 {[%emt 0:02:26]} 35. Ne7 {[%emt 0:01:10]} Ra8 {[%emt 0:02:07]} 36. Nf5 {[%emt 0:00:17]} Rag8 {[%emt 0:01:24]} 37. Nxg7 {[%emt 0:00:35]} Nxg7 {[%emt 0:00:32]} 38. Qf6 {[%emt 0:00:49]} Rb8 {[%emt 0:02:53]} 39. Re7 1-0

[Event "GER-ch Youth U12 2020"]
[Site "Willingen"]
[Date "2020.10.30"]
[Round "5.16"]
[White "Haubold, Christian Lucas"]
[Black "Vecera, Fabio"]
[Result "1-0"]
[ECO "B03"]
[WhiteElo "1615"]
[BlackElo "1534"]
[Annotator "NA RC"]
[PlyCount "95"]
[EventDate "2020.10.27"]
[EventType "swiss"]
[EventRounds "7"]
[EventCountry "GER"]
[SourceTitle "playchess.com"]
[Source "ChessBase"]
[SourceQuality "1"]
[TimeControl "40/5400+30:1800+30"]

1. e4 {[%emt 0:00:00]} Nf6 {[%emt 0:00:00]} 2. e5 {[%emt 0:00:00]} Nd5 {[%emt 0:00:00]} 3. d4 {[%emt 0:00:00]} d6 {[%emt 0:00:00]} 4. c4 {[%emt 0:00:00]} Nb6 {[%emt 0:00:00]} 5. f4 {[%emt 0:00:15]} dxe5 {[%emt 0:01:46]} 6. fxe5 {[%emt 0:03:18]} Nc6 {[%emt 0:00:28]} 7. Be3 {[%emt 0:00:10]} g6 {[%emt 0:02:47]} 8. Nc3 {[%emt 0:05:14]} Bg7 {[%emt 0:01:25]} 9. Be2 {[%emt 0:04:29]} O-O {[%emt 0:00:13]} 10. Nf3 {[%emt 0:06:18]} Bg4 {[%emt 0:01:25]} 11. b3 {[%emt 0:06:21]} f6 {[%emt 0:12:19]} 12. c5 {[%emt 0:09:15]} Nc8 {[%emt 0:01:39]} 13. Bc4+ {[%emt 0:04:56]} Kh8 {[%emt 0:02:27]} 14. e6 {[%emt 0:04:33]} f5 {[%emt 0:02:16]} 15. Ne2 {[%emt 0:08:52]} Bxf3 {[%emt 0:01:39]} 16. gxf3 {[%emt 0:00:43]} a6 {[%emt 0:04:06]} 17. a4 {[%emt 0:13:02]} N8a7 {[%emt 0:12:04]} 18. f4 {[%emt 0:11:19]} b5 19. cxb6 {[%emt 0:00:36]} cxb6 {[%emt 0:03:38]} 20. Bxa6 {[%emt 0:04:07]} Qd5 {[%emt 0:00:44]} 21. Kf2 {[%emt 0:00:30]} Na5 {[%emt 0:10:55]} 22. b4 {[%emt 0:03:53]} N5c6 {[%emt 0:09:06]} 23. Rb1 {[%emt 0:04:06]} Rfd8 {[%emt 0:01:14]} 24. Bb7 {[%emt 0:01:38]} Rab8 {[%emt 0:00:47]} 25. Bxc6 {[%emt 0:00:44]} Nxc6 {[%emt 0:00:39]} 26. Rb3 {[%emt 0:02:46]} Qxe6 {[%emt 0:01:59]} 27. b5 {[%emt 0:01:45]} Na5 {[%emt 0:01:52]} 28. Rc3 {[%emt 0:00:15]} Rd7 {[%emt 0:00:50]} 29. Qc1 {[%emt 0:00:36]} Rbd8 {[%emt 0:02:59]} 30. Qc2 {[%emt 0:00:33]} Nb7 {[%emt 0:02:54]} 31. Rd1 {[%emt 0:00:52]} Nd6 {[%emt 0:00:39]} 32. Ng3 {[%emt 0:00:10]} Kg8 {[%emt 0:05:06]} 33. Rc6 {[%emt 0:00:39]} Kf8 {[%emt 0:00:59]} 34. d5 {[%emt 0:00:50]} Ne4+ {[%emt 0:01:30]} 35. Nxe4 {[%emt 0:00:12]} Qxe4 {[%emt 0:00:13]} 36. Qxe4 {[%emt 0:00:04]} fxe4 {[%emt 0:00:02]} 37. Bxb6 {[%emt 0:00:13]} Rxd5 {[%emt 0:00:23]} 38. Rxd5 {[%emt 0:00:50]} Rxd5 {[%emt 0:00:07]} 39. Ke3 {[%emt 0:00:33]} Rh5 {[%emt 0:02:57]} 40. Rc2 {[%emt 0:00:46]} g5 {[%emt 0:03:28]} 41. Rc5 {[%emt 0:34:07]} gxf4+ {[%emt 0:30:59]} 42. Kxe4 {[%emt 0:00:30]} Rxh2 {[%emt 0:00:29]} 43. a5 {[%emt 0:00:00]} f3 {[%emt 0:00:00]} 44. a6 {[%emt 0:00:00]} Rh4+ {[%emt 0:00:00]} 45. Kxf3 {[%emt 0:00:00]} Ra4 {[%emt 0:00:00]} 46. a7 {[%emt 0:00:00]} Bh6 {[%emt 0:00:00]} 47. Rc8+ {[%emt 0:00:00]} Kf7 {[%emt 0:00:00]} 48. a8=Q 1-0

[Event "GER-ch Youth U12 2020"]
[Site "Willingen"]
[Date "2020.10.30"]
[Round "5.18"]
[White "Möller, Maurin"]
[Black "Mader, Fabian"]
[Result "1-0"]
[ECO "C10"]
[WhiteElo "1645"]
[BlackElo "1588"]
[Annotator "NA RC"]
[PlyCount "47"]
[EventDate "2020.10.27"]
[EventType "swiss"]
[EventRounds "7"]
[EventCountry "GER"]
[SourceTitle "playchess.com"]
[Source "ChessBase"]
[SourceQuality "1"]
[TimeControl "40/5400+30:1800+30"]

1. e4 {[%emt 0:00:00]} e6 {[%emt 0:00:00]} 2. d4 {[%emt 0:00:00]} d5 {[%emt 0:00:00]} 3. Nd2 {[%emt 0:00:00]} dxe4 {[%emt 0:00:00]} 4. Nxe4 {[%emt 0:00:19]} Nd7 {[%emt 0:00:00]} 5. Nf3 {[%emt 0:00:12]} Ngf6 {[%emt 0:00:03]} 6. Nxf6+ {[%emt 0:00:11]} Nxf6 {[%emt 0:00:11]} 7. c3 {[%emt 0:00:06]} c5 {[%emt 0:00:12]} 8. Bf4 {[%emt 0:03:40]} Be7 {[%emt 0:03:33]} 9. dxc5 {[%emt 0:09:35]} Qxd1+ {[%emt 0:01:26]} 10. Rxd1 {[%emt 0:00:12]} Bxc5 {[%emt 0:00:10]} 11. Bd3 {[%emt 0:02:40]} O-O {[%emt 0:03:14]} 12. Ng5 {[%emt 0:19:24]} Rd8 {[%emt 0:07:12]} 13. Bxh7+ {[%emt 0:00:23]} Nxh7 {[%emt 0:03:06]} 14. Rxd8+ {[%emt 0:00:08]} Nf8 {[%emt 0:00:13]} 15. Ne4 {[%emt 0:02:33]} Bb6 {[%emt 0:02:39]} 16. Re8 {[%emt 0:00:55]} f5 {[%emt 0:07:35]} 17. Ng5 {[%emt 0:02:20]} Bc5 {[%emt 0:02:56]} 18. b4 {[%emt 0:00:09]} Bb6 {[%emt 0:02:07]} 19. Bd6 {[%emt 0:00:19]} g6 {[%emt 0:00:35]} 20. Bxf8 {[%emt 0:00:26]} Bd7 {[%emt 0:01:06]} 21. Rxa8 {[%emt 0:00:06]} e5 {[%emt 0:01:03]} 22. Bh6+ {[%emt 0:00:12]} Bc8 {[%emt 0:00:11]} 23. Rxc8+ {[%emt 0:00:06]} Bd8 {[%emt 0:00:05]} 24. Rxd8# 1-0

[Event "GER-ch Youth U12 2020"]
[Site "Willingen"]
[Date "2020.10.30"]
[Round "5.19"]
[White "Leubner, Paul Damdin"]
[Black "Isbilir, Levin"]
[Result "1-0"]
[ECO "B54"]
[WhiteElo "1409"]
[BlackElo "1233"]
[Annotator "NA RC"]
[PlyCount "69"]
[EventDate "2020.10.27"]
[EventType "swiss"]
[EventRounds "7"]
[EventCountry "GER"]
[SourceTitle "playchess.com"]
[Source "ChessBase"]
[SourceQuality "1"]
[TimeControl "40/5400+30:1800+30"]

1. e4 {[%emt 0:00:00]} c5 {[%emt 0:00:00]} 2. Nf3 {[%emt 0:00:00]} d6 {[%emt 0:00:00]} 3. d4 {[%emt 0:00:00]} cxd4 {[%emt 0:00:00]} 4. Nxd4 {[%emt 0:00:06]} Nf6 {[%emt 0:00:00]} 5. f3 {[%emt 0:00:19]} g6 {[%emt 0:00:06]} 6. c4 {[%emt 0:00:57]} Bg7 {[%emt 0:00:11]} 7. Nc3 {[%emt 0:00:56]} Nc6 {[%emt 0:00:25]} 8. Be3 {[%emt 0:00:56]} O-O {[%emt 0:00:15]} 9. Qd2 {[%emt 0:00:27]} Bd7 {[%emt 0:00:32]} 10. Be2 {[%emt 0:00:39]} Nxd4 {[%emt 0:01:36]} 11. Bxd4 {[%emt 0:01:05]} a5 {[%emt 0:00:32]} 12. O-O-O {[%emt 0:04:51]} a4 {[%emt 0:13:55]} 13. Kb1 {[%emt 0:04:05]} a3 {[%emt 0:09:51]} 14. b3 {[%emt 0:06:32]} Qc7 {[%emt 0:07:20]} 15. g4 {[%emt 0:03:20]} Rfc8 {[%emt 0:05:00]} 16. h4 {[%emt 0:06:04]} Rab8 {[%emt 0:20:09]} 17. h5 {[%emt 0:10:25]} Qa5 {[%emt 0:09:29]} 18. hxg6 {[%emt 0:15:47]} hxg6 {[%emt 0:01:30]} 19. Ka1 {[%emt 0:10:17]} Bc6 {[%emt 0:08:16]} 20. Rh2 {[%emt 0:07:50]} e6 {[%emt 0:02:33]} 21. Rdh1 {[%emt 0:05:31]} d5 {[%emt 0:01:25]} 22. e5 {[%emt 0:02:42]} Nd7 {[%emt 0:00:28]} 23. Rh7 {[%emt 0:02:49]} Bxe5 {[%emt 0:08:52]} 24. Bxe5 {[%emt 0:05:08]} Nxe5 {[%emt 0:01:00]} 25. Rh8+ {[%emt 0:02:48]} Kg7 {[%emt 0:00:10]} 26. R1h7+ {[%emt 0:00:15]} Kf6 {[%emt 0:00:09]} 27. Rxc8 {[%emt 0:00:14]} Qa7 {[%emt 0:02:33]} 28. Rxb8 {[%emt 0:02:04]} Qxb8 {[%emt 0:00:13]} 29. g5+ {[%emt 0:01:30]} Ke7 {[%emt 0:00:34]} 30. f4 {[%emt 0:00:12]} Nd7 {[%emt 0:01:05]} 31. cxd5 {[%emt 0:00:58]} Bxd5 {[%emt 0:01:11]} 32. Nxd5+ {[%emt 0:00:18]} exd5 {[%emt 0:00:06]} 33. Qb4+ {[%emt 0:00:15]} Ke6 {[%emt 0:00:28]} 34. Bg4+ {[%emt 0:00:15]} f5 {[%emt 0:00:23]} 35. Qe7# 1-0

[Event "GER-ch Youth U12 2020"]
[Site "Willingen"]
[Date "2020.10.30"]
[Round "5.20"]
[White "Chugunov, Ivan"]
[Black "Schwarz, David"]
[Result "0-1"]
[ECO "C54"]
[WhiteElo "1552"]
[BlackElo "1200"]
[Annotator "NA RC"]
[PlyCount "74"]
[EventDate "2020.10.27"]
[EventType "swiss"]
[EventRounds "7"]
[EventCountry "GER"]
[SourceTitle "playchess.com"]
[Source "ChessBase"]
[SourceQuality "1"]
[TimeControl "40/5400+30:1800+30"]

1. e4 {[%emt 0:00:00]} e5 {[%emt 0:00:00]} 2. Nf3 {[%emt 0:00:00]} Nc6 {[%emt 0:00:00]} 3. Bc4 {[%emt 0:00:02]} Bc5 {[%emt 0:00:22]} 4. c3 {[%emt 0:00:11]} Nf6 {[%emt 0:00:42]} 5. d3 {[%emt 0:00:23]} d6 {[%emt 0:03:16]} 6. Bb3 {[%emt 0:00:13]} a6 {[%emt 0:01:16]} 7. h3 {[%emt 0:00:18]} Ba7 {[%emt 0:00:34]} 8. Nbd2 {[%emt 0:00:49]} h6 {[%emt 0:00:21]} 9. a4 {[%emt 0:01:09]} Be6 {[%emt 0:01:07]} 10. Bc2 {[%emt 0:00:14]} Qd7 {[%emt 0:01:30]} 11. Nf1 {[%emt 0:00:59]} g5 {[%emt 0:01:35]} 12. b4 {[%emt 0:01:46]} Ne7 {[%emt 0:02:32]} 13. g4 {[%emt 0:02:00]} Ng6 {[%emt 0:02:25]} 14. Ng3 {[%emt 0:01:23]} O-O-O {[%emt 0:05:28]} 15. a5 {[%emt 0:03:19]} Nf4 {[%emt 0:04:16]} 16. Bxf4 {[%emt 0:01:13]} gxf4 {[%emt 0:00:10]} 17. Ba4 {[%emt 0:01:05]} c6 {[%emt 0:03:01]} 18. Nf5 {[%emt 0:00:38]} Rdg8 {[%emt 0:02:18]} 19. Rg1 {[%emt 0:02:01]} h5 {[%emt 0:02:58]} 20. Nd2 {[%emt 0:01:19]} hxg4 {[%emt 0:01:54]} 21. hxg4 {[%emt 0:01:17]} Rh2 {[%emt 0:01:24]} 22. d4 {[%emt 0:00:51]} Bxf5 {[%emt 0:05:28]} 23. exf5 {[%emt 0:00:57]} exd4 {[%emt 0:01:23]} 24. Nf3 {[%emt 0:03:52]} Rh3 {[%emt 0:03:05]} 25. cxd4 {[%emt 0:06:57]} Rxg4 {[%emt 0:02:53]} 26. Rxg4 {[%emt 0:03:53]} Nxg4 {[%emt 0:00:38]} 27. Ng1 {[%emt 0:00:36]} Rh4 {[%emt 0:00:28]} 28. Ra2 {[%emt 0:02:55]} Qxf5 {[%emt 0:05:00]} 29. Re2 {[%emt 0:08:06]} f3 {[%emt 0:03:21]} 30. Qc2 {[%emt 0:07:55]} Qxc2 {[%emt 0:02:15]} 31. Rxc2 {[%emt 0:01:01]} Rh1 {[%emt 0:00:43]} 32. Kd2 Rxg1 {[%emt 0:00:27]} 33. Rc3 {[%emt 0:07:05]} Rf1 {[%emt 0:00:55]} 34. Rxf3 {[%emt 0:01:14]} Rxf2+ {[%emt 0:00:58]} 35. Rxf2 {[%emt 0:00:26]} Nxf2 {[%emt 0:00:05]} 36. Bc2 {[%emt 0:00:16]} Bxd4 {[%emt 0:01:08]} 37. Ke2 {[%emt 0:02:21]} Kc7 {[%emt 0:00:41]} 0-1

[Event "GER-ch Youth U12 2020"]
[Site "Willingen"]
[Date "2020.10.30"]
[Round "5.21"]
[White "Weyerer, Noah"]
[Black "Schneble, Milan"]
[Result "1-0"]
[ECO "A41"]
[WhiteElo "1536"]
[BlackElo "1418"]
[Annotator "NA RC"]
[PlyCount "49"]
[EventDate "2020.10.27"]
[EventType "swiss"]
[EventRounds "7"]
[EventCountry "GER"]
[SourceTitle "playchess.com"]
[Source "ChessBase"]
[SourceQuality "1"]
[TimeControl "40/5400+30:1800+30"]

1. d4 {[%emt 0:00:00]} d6 {[%emt 0:00:00]} 2. Bf4 {[%emt 0:00:00]} Nf6 {[%emt 0:00:02]} 3. Nc3 {[%emt 0:00:00]} g6 {[%emt 0:00:18]} 4. e4 {[%emt 0:00:10]} c6 {[%emt 0:00:27]} 5. Qd2 {[%emt 0:01:43]} b5 {[%emt 0:00:24]} 6. f3 {[%emt 0:02:02]} Nbd7 {[%emt 0:04:24]} 7. d5 {[%emt 0:03:12]} cxd5 {[%emt 0:13:01]} 8. Nxd5 {[%emt 0:02:40]} a6 {[%emt 0:01:03]} 9. a4 {[%emt 0:05:04]} Nxd5 {[%emt 0:02:42]} 10. Qxd5 {[%emt 0:08:19]} Nb6 {[%emt 0:00:22]} 11. Qd4 {[%emt 0:05:06]} f6 {[%emt 0:01:11]} 12. Be3 {[%emt 0:02:16]} Nxa4 {[%emt 0:02:32]} 13. b3 {[%emt 0:02:05]} Nc5 {[%emt 0:01:46]} 14. Bxb5+ {[%emt 0:02:39]} Bd7 {[%emt 0:00:17]} 15. Bxd7+ {[%emt 0:01:26]} Qxd7 {[%emt 0:00:50]} 16. Ne2 {[%emt 0:05:51]} Bg7 {[%emt 0:01:15]} 17. Qd2 {[%emt 0:06:04]} Ne6 {[%emt 0:01:43]} 18. Ra4 {[%emt 0:05:50]} O-O {[%emt 0:01:10]} 19. O-O {[%emt 0:06:32]} Rfc8 {[%emt 0:02:30]} 20. Rc1 {[%emt 0:03:03]} Rc6 {[%emt 0:09:10]} 21. Qd5 {[%emt 0:03:30]} Kf8 {[%emt 0:01:38]} 22. c4 {[%emt 0:05:09]} Rcc8 {[%emt 0:04:49]} 23. Rca1 {[%emt 0:06:19]} Nc5 {[%emt 0:00:47]} 24. Bxc5 {[%emt 0:01:05]} Rxc5 {[%emt 0:00:11]} 25. Qxa8+ {[%emt 0:00:15]} 1-0

[Event "GER-ch Youth U12 2020"]
[Site "Willingen"]
[Date "2020.10.30"]
[Round "5.22"]
[White "Gärtner, Alessandro"]
[Black "Müller, Mitja"]
[Result "1-0"]
[ECO "D02"]
[WhiteElo "1251"]
[BlackElo "1360"]
[Annotator "NA RC"]
[PlyCount "107"]
[EventDate "2020.10.27"]
[EventType "swiss"]
[EventRounds "7"]
[EventCountry "GER"]
[SourceTitle "playchess.com"]
[Source "ChessBase"]
[SourceQuality "1"]
[TimeControl "40/5400+30:1800+30"]

1. d4 {[%emt 0:00:00]} d5 {[%emt 0:00:00]} 2. Bf4 {[%emt 0:00:00]} Nf6 {[%emt 0:00:00]} 3. Nf3 {[%emt 0:00:00]} c5 {[%emt 0:00:15]} 4. e3 {[%emt 0:00:08]} Nc6 {[%emt 0:00:27]} 5. c3 {[%emt 0:00:10]} Qb6 {[%emt 0:00:23]} 6. Na3 {[%emt 0:02:24]} c4 {[%emt 0:02:26]} 7. Qc1 {[%emt 0:07:12]} Bf5 {[%emt 0:02:39]} 8. Be2 {[%emt 0:00:25]} e6 {[%emt 0:00:26]} 9. Nc2 {[%emt 0:00:24]} Be7 {[%emt 0:01:58]} 10. O-O {[%emt 0:00:21]} O-O {[%emt 0:00:32]} 11. Nd2 {[%emt 0:01:34]} Qa5 {[%emt 0:02:49]} 12. f3 {[%emt 0:02:01]} b5 {[%emt 0:01:48]} 13. a3 {[%emt 0:01:12]} Qb6 {[%emt 0:07:58]} 14. Re1 {[%emt 0:01:04]} Bxc2 {[%emt 0:20:04]} 15. Qxc2 {[%emt 0:00:48]} e5 {[%emt 0:06:09]} 16. Bg3 {[%emt 0:02:26]} Rfe8 {[%emt 0:09:16]} 17. Bf2 {[%emt 0:02:06]} Bd6 {[%emt 0:01:15]} 18. Qf5 {[%emt 0:03:31]} Ne7 {[%emt 0:10:53]} 19. Qh3 {[%emt 0:02:08]} Ng6 {[%emt 0:01:21]} 20. g3 {[%emt 0:05:52]} Rad8 {[%emt 0:02:00]} 21. Bf1 {[%emt 0:07:42]} e4 {[%emt 0:01:24]} 22. fxe4 {[%emt 0:04:36]} Nxe4 {[%emt 0:00:28]} 23. Nxe4 {[%emt 0:00:23]} Rxe4 {[%emt 0:05:15]} 24. Bg2 {[%emt 0:00:09]} Ree8 {[%emt 0:00:18]} 25. Bxd5 {[%emt 0:00:52]} Bxg3 {[%emt 0:00:35]} 26. Bxf7+ {[%emt 0:00:20]} Kxf7 {[%emt 0:00:12]} 27. Bxg3 {[%emt 0:00:37]} Kg8 {[%emt 0:00:56]} 28. Re2 {[%emt 0:03:16]} Re7 {[%emt 0:03:12]} 29. Rf1 {[%emt 0:01:45]} Rde8 {[%emt 0:01:30]} 30. Qf5 {[%emt 0:00:59]} Qe6 {[%emt 0:02:38]} 31. Qxe6+ {[%emt 0:03:14]} Rxe6 {[%emt 0:00:21]} 32. Rfe1 {[%emt 0:00:03]} Ne7 {[%emt 0:00:31]} 33. e4 {[%emt 0:02:19]} Nf5 {[%emt 0:00:16]} 34. d5 {[%emt 0:01:12]} Nxg3 {[%emt 0:01:04]} 35. hxg3 {[%emt 0:00:03]} Re5 {[%emt 0:00:23]} 36. d6 {[%emt 0:00:57]} Kf7 {[%emt 0:00:50]} 37. Rd2 {[%emt 0:00:47]} Ke6 {[%emt 0:01:41]} 38. Rd4 {[%emt 0:00:28]} Rd8 {[%emt 0:00:49]} 39. Red1 {[%emt 0:00:12]} Kd7 {[%emt 0:00:55]} 40. a4 {[%emt 0:00:40]} a6 {[%emt 0:00:32]} 41. Kf2 {[%emt 0:34:39]} Rf8+ {[%emt 0:31:12]} 42. Ke3 {[%emt 0:00:33]} g5 {[%emt 0:00:51]} 43. axb5 {[%emt 0:01:14]} axb5 {[%emt 0:00:09]} 44. Ra1 {[%emt 0:00:15]} g4 {[%emt 0:00:58]} 45. Ra7+ {[%emt 0:00:57]} Kc6 {[%emt 0:00:56]} 46. Rc7+ {[%emt 0:00:23]} Kb6 {[%emt 0:00:20]} 47. Rxh7 {[%emt 0:02:13]} Re6 {[%emt 0:00:24]} 48. Re7 {[%emt 0:00:46]} Ref6 {[%emt 0:00:13]} 49. e5 {[%emt 0:01:03]} Rf3+ {[%emt 0:01:14]} 50. Ke4 {[%emt 0:02:02]} Kc6 {[%emt 0:01:04]} 51. d7 {[%emt 0:01:13]} Rf1 {[%emt 0:00:39]} 52. d8=N+ {[%emt 0:01:24]} Kc5 {[%emt 0:02:12]} 53. Ne6+ {[%emt 0:02:07]} Kc6 {[%emt 0:00:18]} 54. Rd6# {[%emt 0:00:14]} 1-0

[Event "GER-ch Youth U12 2020"]
[Site "Willingen"]
[Date "2020.10.30"]
[Round "5.23"]
[White "Guo, Jacob Tingshen"]
[Black "Cromm, Mika"]
[Result "1/2-1/2"]
[ECO "D35"]
[WhiteElo "1551"]
[BlackElo "1665"]
[Annotator "NA RC"]
[PlyCount "43"]
[EventDate "2020.10.27"]
[EventType "swiss"]
[EventRounds "7"]
[EventCountry "GER"]
[SourceTitle "playchess.com"]
[Source "ChessBase"]
[SourceQuality "1"]
[TimeControl "40/5400+30:1800+30"]

1. d4 {[%emt 0:00:00]} d5 {[%emt 0:00:00]} 2. c4 {[%emt 0:00:00]} e6 {[%emt 0:00:00]} 3. Nc3 {[%emt 0:00:00]} Nf6 {[%emt 0:00:00]} 4. cxd5 {[%emt 0:01:32]} exd5 {[%emt 0:00:46]} 5. Nf3 {[%emt 0:02:34]} Be7 {[%emt 0:02:18]} 6. Bg5 {[%emt 0:01:34]} O-O {[%emt 0:03:22]} 7. e3 {[%emt 0:07:22]} c6 {[%emt 0:02:51]} 8. Qc2 {[%emt 0:04:48]} Be6 {[%emt 0:06:35]} 9. Bd3 {[%emt 0:03:43]} h6 {[%emt 0:00:52]} 10. Bh4 {[%emt 0:04:13]} Nbd7 {[%emt 0:04:02]} 11. O-O {[%emt 0:10:35]} Rc8 {[%emt 0:05:41]} 12. Rac1 {[%emt 0:11:31]} c5 {[%emt 0:06:01]} 13. Qd2 {[%emt 0:14:31]} a6 {[%emt 0:07:07]} 14. a4 {[%emt 0:04:36]} cxd4 {[%emt 0:20:54]} 15. exd4 {[%emt 0:03:26]} Nh5 {[%emt 0:06:41]} 16. Bxe7 {[%emt 0:02:51]} Qxe7 {[%emt 0:00:11]} 17. Rfe1 {[%emt 0:02:43]} Nhf6 {[%emt 0:03:43]} 18. Na2 {[%emt 0:16:14]} Qd6 {[%emt 0:05:58]} 19. a5 {[%emt 0:03:09]} b5 {[%emt 0:01:47]} 20. b4 {[%emt 0:01:25]} Nb8 {[%emt 0:02:55]} 21. Ne5 {[%emt 0:01:19]} Nfd7 {[%emt 0:00:33]} 22. f4 {[%emt 0:00:57]} 1/2-1/2

[Event "GER-ch Youth U12 2020"]
[Site "Willingen"]
[Date "2020.10.30"]
[Round "5.24"]
[White "Schröder, Jan-Hendrik"]
[Black "Huber, Benedikt"]
[Result "0-1"]
[ECO "C02"]
[WhiteElo "1324"]
[BlackElo "1725"]
[Annotator "NA RC"]
[PlyCount "92"]
[EventDate "2020.10.27"]
[EventType "swiss"]
[EventRounds "7"]
[EventCountry "GER"]
[SourceTitle "playchess.com"]
[Source "ChessBase"]
[SourceQuality "1"]
[TimeControl "40/5400+30:1800+30"]

1. e4 {[%emt 0:00:00]} e6 {[%emt 0:00:00]} 2. d4 {[%emt 0:00:00]} d5 {[%emt 0:00:00]} 3. e5 {[%emt 0:00:06]} c5 {[%emt 0:00:00]} 4. c3 {[%emt 0:00:06]} Qb6 {[%emt 0:00:04]} 5. Nf3 {[%emt 0:00:09]} Nc6 {[%emt 0:00:26]} 6. Bd3 {[%emt 0:00:19]} cxd4 {[%emt 0:00:24]} 7. cxd4 {[%emt 0:00:07]} Bd7 {[%emt 0:00:05]} 8. O-O {[%emt 0:01:32]} Nxd4 {[%emt 0:02:19]} 9. Nxd4 {[%emt 0:00:43]} Qxd4 {[%emt 0:00:08]} 10. Nc3 {[%emt 0:00:07]} a6 {[%emt 0:00:06]} 11. Re1 {[%emt 0:00:38]} Rc8 {[%emt 0:02:57]} 12. Be3 {[%emt 0:00:56]} Qh4 {[%emt 0:02:33]} 13. g3 {[%emt 0:05:48]} Qd8 {[%emt 0:05:47]} 14. f4 {[%emt 0:02:32]} Ne7 {[%emt 0:05:48]} 15. Bf2 {[%emt 0:10:23]} g6 {[%emt 0:08:58]} 16. Qb3 {[%emt 0:05:59]} Bc6 {[%emt 0:01:23]} 17. Rac1 {[%emt 0:05:34]} Bg7 {[%emt 0:05:16]} 18. Na4 {[%emt 0:06:42]} O-O {[%emt 0:02:49]} 19. Bc5 {[%emt 0:04:52]} Bxa4 {[%emt 0:04:27]} 20. Qxa4 {[%emt 0:00:43]} Re8 {[%emt 0:00:38]} 21. Qb4 {[%emt 0:01:50]} Rb8 {[%emt 0:13:58]} 22. Bd6 {[%emt 0:08:05]} Nc6 {[%emt 0:00:48]} 23. Qb3 {[%emt 0:07:50]} Nd4 {[%emt 0:04:02]} 24. Qd1 {[%emt 0:00:17]} Ra8 {[%emt 0:08:27]} 25. a4 {[%emt 0:08:12]} Nc6 {[%emt 0:03:15]} 26. b4 {[%emt 0:02:17]} Bf8 {[%emt 0:03:11]} 27. Bxf8 {[%emt 0:01:12]} Rxf8 {[%emt 0:00:39]} 28. b5 {[%emt 0:00:48]} axb5 {[%emt 0:01:01]} 29. Bxb5 {[%emt 0:00:06]} Qb6+ {[%emt 0:00:55]} 30. Kg2 {[%emt 0:00:57]} Rfc8 {[%emt 0:02:38]} 31. Rb1 {[%emt 0:02:47]} Qa7 {[%emt 0:02:41]} 32. Qd2 {[%emt 0:04:54]} Nd4 {[%emt 0:03:02]} 33. Rec1 {[%emt 0:03:50]} Nxb5 {[%emt 0:03:31]} 34. axb5 {[%emt 0:00:22]} Rxc1 {[%emt 0:00:58]} 35. Rxc1 {[%emt 0:00:09]} Qa4 {[%emt 0:00:47]} 36. Qd3 {[%emt 0:02:22]} Ra5 {[%emt 0:02:51]} 37. b6 {[%emt 0:02:21]} Rb5 {[%emt 0:01:38]} 38. Qc3 {[%emt 0:04:24]} Qe4+ {[%emt 0:01:57]} 39. Kh3 {[%emt 0:00:53]} Rxb6 {[%emt 0:00:58]} 40. Qc8+ {[%emt 0:04:47]} Kg7 {[%emt 0:00:08]} 41. Qd8 {[%emt 0:30:14]} Qf5+ {[%emt 0:30:25]} 42. Kg2 {[%emt 0:00:59]} Rb2+ {[%emt 0:00:56]} 43. Kf3 {[%emt 0:01:54]} Qd3+ {[%emt 0:00:36]} 44. Kg4 {[%emt 0:00:22]} h5+ {[%emt 0:00:15]} 45. Kh4 {[%emt 0:00:48]} Rxh2+ {[%emt 0:00:15]} 46. Kg5 {[%emt 0:00:16]} Qf5# {[%emt 0:00:07]} 0-1